bitfinex-derivatives/quotes_ETHF0:USTF0_20251118
["timestamp","ask_amount","ask_price","bid_price","bid_amount"]
[1763471020525,0.00388184,3048.7,3048.6,0.2481]
[1763471021521,0.0049186,3049.0,3048.9,0.2481]
[1763471021718,0.0049186,3049.0,3048.9,3.4559]
[1763471022020,1.1633767,3050.1,3049.5,0.3979]
[1763471022212,1.1633767,3050.2,3049.5,3.6057]
[1763471022417,0.2408,3049.6,3049.5,3.3576]
[1763471022723,0.00341828,3050.2,3049.5,3.60922764]
[1763471022916,0.00833688,3050.2,3049.5,3.61414624]
[1763471024831,0.2408,3049.6,3049.5,3.36604624]
[1763471025822,0.2408,3049.6,3049.5,3.61414624]
[1763471026029,0.00833688,3050.2,3049.5,3.61414624]
[1763471026932,0.2408,3049.6,3049.5,3.21624624]
[1763471027235,0.2408,3049.6,3049.5,0.00844624]
[1763471029435,0.2408,3049.6,3049.5,0.40634624]
[1763471030033,0.2408,3049.6,3049.5,0.00844624]
[1763471037031,0.2434,3049.1,3048.6,3.2078]
[1763471037233,0.2434,3048.6,3048.5,0.1498]
[1763471037436,0.2434,3048.3,3048.2,3.4548]
[1763471037936,3.2078,3048.8,3048.2,3.4548]
[1763471038138,3.2127186,3048.8,3048.2,3.46227782]
[1763471038341,0.2434,3048.3,3048.2,3.46227782]
[1763471038533,0.2434,3048.3,3048.2,3.21527782]
[1763471038732,0.2434,3048.3,3048.2,3.46227782]
[1763471040744,0.2434,3048.3,3048.2,0.00747782]
[1763471041130,0.2434,3047.6,3047.5,0.1498]
[1763471041332,0.2434,3047.5,3047.0,0.149]
[1763471041529,0.2434,3047.1,3047.0,0.396]
[1763471041732,0.2434,3047.1,3046.9,3.2078]
[1763471041733,0.2434,3047.0,3046.5,0.149]
[1763471042337,0.24645279,3047.0,3046.5,0.1526748]
[1763471042539,0.24645279,3047.0,3046.9,0.247]
[1763471042731,0.24645279,3047.0,3046.5,0.1526748]
[1763471043239,0.00305279,3047.0,3046.9,0.247]
[1763471044343,3.2078,3048.5,3048.0,0.149]
[1763471045042,0.2434,3047.8,3047.7,3.4548]
[1763471045245,3.3462,3048.5,3047.7,3.4548]
[1763471045443,0.00371956,3047.8,3047.7,3.4548]
[1763471045644,0.24711956,3047.8,3047.7,3.2078]
[1763471045837,0.00371956,3047.8,3047.7,3.4548]
[1763471048348,0.00371956,3047.8,3047.7,0.247]
[1763471051941,1.956e-05,3047.8,3047.7,0.247]
[1763471052147,3.2127186,3048.1,3048.0,0.396]
[1763471053147,0.0079835,3048.1,3048.0,0.396]
[1763471054846,3.2078,3049.0,3048.9,0.247]
[1763471055241,3.4512,3049.0,3048.9,0.247]
[1763471055845,3.45468682,3049.0,3048.9,0.25027465]
[1763471056249,3.59728682,3049.0,3048.9,0.00327465]
[1763471056650,0.00348682,3049.0,3048.9,0.25027465]
[1763471058246,0.24688682,3049.0,3048.9,0.00327465]
[1763471058853,0.31978682,3049.0,3048.9,0.00327465]
[1763471060751,0.00348682,3049.0,3048.9,0.25027465]
[1763471062452,0.0049186,3049.3,3049.2,0.2338]
[1763471063356,0.00909716,3049.3,3049.2,0.2338]
[1763471064454,0.00909716,3049.3,3049.2,3.4416]
[1763471064655,3.2078,3049.9,3049.8,0.2338]
[1763471065358,5.5993705,3050.2,3049.8,0.2338]
[1763471065657,0.2283,3049.9,3049.8,0.2338]
[1763471066062,5.60354287,3050.2,3049.8,0.2338]
[1763471066762,0.2283,3049.9,3049.8,0.2338]
[1763471067359,5.60354287,3050.2,3050.1,0.2287]
[1763471067957,0.2487,3050.1,3050.0,0.1488]
[1763471068459,5.85224287,3050.2,3050.1,0.2287]
[1763471068663,0.2487,3050.1,3050.0,0.1488]
[1763471068961,0.2487,3050.1,3050.0,0.3775]
[1763471070056,5.60354287,3050.2,3050.0,0.3775]
[1763471070057,5.60354287,3050.2,3050.1,0.2287]
[1763471070255,0.00417237,3050.2,3050.1,0.2287]
[1763471072555,0.25287237,3050.2,3050.0,0.1488]
[1763471072752,0.25287237,3050.2,3050.1,0.2287]
[1763471072953,0.00417237,3050.2,3050.1,0.2287]
[1763471076362,0.00417237,3050.2,3050.1,3.4365]
[1763471076565,3.2078,3050.9,3050.6,0.2287]
[1763471077267,3.2078,3050.9,3050.8,0.2287]
[1763471077661,3.21164632,3050.9,3050.8,0.2287]
[1763471078553,0.00384632,3050.9,3050.8,0.2287]
[1763471082664,0.25254632,3050.9,3050.8,0.2287]
[1763471082871,0.00384632,3050.9,3050.8,0.2287]
[1763471083264,0.25254632,3050.9,3050.8,0.2287]
[1763471083463,0.00384632,3050.9,3050.8,0.2287]
[1763471083964,0.25254632,3050.9,3050.5,3.3615186]
[1763471084161,0.25254632,3050.9,3050.5,0.3824186]
[1763471084162,0.2487,3050.6,3050.5,0.3824186]
[1763471084470,3.21164632,3050.9,3050.5,0.3824186]
[1763471085564,3.21164632,3050.9,3050.8,0.2287]
[1763471085868,3.46034632,3050.9,3050.8,0.2287]
[1763471086669,0.25254632,3050.9,3050.8,3.4365]
[1763471086875,0.00384632,3050.9,3050.8,3.4365]
[1763471088572,0.25254632,3050.9,3050.8,3.4365]
[1763471088772,0.25254632,3050.9,3050.8,3.2078]
[1763471089071,0.25254632,3050.9,3050.8,3.4365]
[1763471090268,0.00384632,3050.9,3050.8,3.4365]
[1763471090662,0.25254632,3050.9,3050.8,3.2078]
[1763471091368,0.25254632,3050.9,3050.8,3.4365]
[1763471092173,0.25254632,3050.9,3050.8,3.2078]
[1763471093669,0.2487,3050.6,3050.5,0.0049186]
[1763471095472,0.2487,3050.1,3050.0,3.2078]
[1763471095667,0.2487,3049.7,3049.6,3.4365]
[1763471095871,3.2078,3050.2,3049.6,3.4365]
[1763471096569,3.2127186,3050.2,3049.6,3.4414186]
[1763471097184,0.2487,3049.7,3049.6,3.4414186]
[1763471097379,3.2127186,3050.2,3049.6,3.4414186]
[1763471098777,0.2499186,3050.2,3050.1,3.2078]
[1763471100076,0.2499186,3050.2,3049.6,0.0049186]
[1763471101085,0.2499186,3050.2,3050.1,0.2485]
[1763471101572,0.245,3050.1,3049.6,0.0049186]
[1763471101769,0.245,3049.7,3049.6,0.0049186]
[1763471102382,0.245,3049.7,3049.6,0.2534186]
[1763471103181,0.245,3049.7,3049.6,0.0049186]
[1763471104280,0.245,3049.7,3049.6,0.2534186]
[1763471104476,3.4577186,3050.2,3050.1,0.2485]
[1763471105382,0.245,3050.1,3050.0,0.1355]
[1763471105783,0.245,3050.1,3049.6,0.0049186]
[1763471107883,0.245,3049.2,3049.1,3.4563]
[1763471108889,3.2078,3049.7,3049.1,3.4563]
[1763471109082,0.245,3049.2,3049.1,3.4563]
[1763471109583,0.245,3049.0,3048.9,0.00327465]
[1763471110086,0.3256,3049.0,3048.9,0.00327465]
[1763471112788,0.3256,3049.0,3048.3,3.2078]
[1763471112789,0.245,3048.4,3048.3,3.2078]
[1763471113288,0.245,3048.4,3048.3,3.4563]
[1763471113688,0.245,3048.4,3048.3,3.2078]
[1763471113885,0.245,3048.1,3048.0,0.1404186]
[1763471114081,0.245,3048.1,3048.0,0.00769497]
[1763471114282,0.245,3048.1,3048.0,0.39169497]
[1763471114883,0.245,3048.1,3048.0,0.00769497]
[1763471115788,0.245,3048.1,3048.0,0.25619497]
[1763471116293,0.245,3048.1,3048.0,0.00769497]
[1763471122193,0.245,3048.1,3047.1,3.2078]
[1763471122501,3.2078,3047.8,3047.1,3.2078]
[1763471122797,0.245,3047.2,3047.1,3.4563]
[1763471123192,3.2078,3047.8,3047.1,3.45948992]
[1763471123793,3.2078,3047.8,3047.7,0.2386]
[1763471124900,3.4414,3048.2,3048.1,0.2386]
[1763471126400,0.2336,3048.1,3048.0,0.145]
[1763471126604,0.2336,3048.1,3048.0,0.3836]
[1763471126904,0.2336,3047.6,3047.5,3.3528]
[1763471127111,0.2336,3047.6,3047.1,3.21098992]
[1763471127402,3.2078,3047.4,3047.1,0.00318992]
[1763471127598,3.4513,3047.4,3047.3,0.2362]
[1763471128002,0.2435,3047.4,3047.3,0.2362]
[1763471129605,3.2078,3047.9,3047.3,0.2362]
[1763471129803,0.2435,3047.4,3047.3,0.2362]
[1763471130595,0.2435,3047.2,3047.1,0.00318992]
[1763471131000,0.2435,3047.2,3047.1,0.23938992]
[1763471131605,3.2078,3047.9,3047.1,0.23938992]
[1763471131803,0.0808,3048.0,3047.1,0.23938992]
[1763471131804,0.2435,3047.2,3047.1,0.23938992]
[1763471131996,0.2435,3047.2,3047.0,0.1355]
[1763471131997,0.2435,3046.6,3046.3,3.2078]
[1763471132204,0.2435,3046.4,3046.3,3.444]
[1763471132401,3.4513,3046.4,3046.3,0.2362]
[1763471132602,0.2435,3046.1,3045.5,0.1445]
[1763471132801,3.4513,3045.9,3045.8,0.2362]
[1763471133000,0.24715364,3045.9,3045.8,0.23910645]
[1763471134411,0.2435,3045.7,3045.6,3.2078]
[1763471134605,0.2435,3045.6,3045.5,0.0049186]
[1763471135411,0.2435,3045.6,3045.5,0.00792151]
[1763471135806,0.1392,3045.5,3044.5,3.3523]
[1763471136113,3.2078,3045.0,3044.5,3.3523]
[1763471136508,0.2435,3044.6,3044.5,3.3523]
[1763471136704,0.2435,3044.6,3044.5,3.5885]
[1763471136899,0.2435,3044.6,3044.5,3.59122579]
[1763471137103,3.2884,3045.0,3044.5,3.59122579]
[1763471137501,3.2078,3045.0,3044.9,0.2362]
[1763471137708,3.2078,3045.6,3045.0,0.1445]
[1763471138515,3.2078,3045.6,3045.5,0.3807]
[1763471138710,0.00365364,3045.9,3045.8,0.2362]
[1763471139814,0.24715364,3045.9,3045.5,0.1445]
[1763471141702,0.00365364,3045.9,3045.8,0.2362]
[1763471141903,0.24715364,3045.9,3045.8,0.2362]
[1763471145319,0.00365364,3045.9,3045.8,0.2362]
[1763471145519,0.24715364,3045.9,3045.8,0.2362]
[1763471145718,0.24715364,3045.9,3045.5,0.1445]
[1763471146221,0.00365364,3045.9,3045.8,0.2362]
[1763471146523,3.2078,3047.0,3046.9,0.2362]
[1763471147724,3.2117723,3047.0,3046.9,0.2395451]
[1763471148808,0.0039723,3047.0,3046.9,3.4473451]
[1763471154028,4.48014351,3048.1,3047.5,0.3807]
[1763471154320,0.2435,3047.4,3047.3,3.2078]
[1763471154526,0.0847,3048.0,3047.0,0.1445]
[1763471154527,3.2078,3047.7,3047.0,0.1445]
[1763471154727,3.2078,3047.7,3047.0,3.3523]
[1763471154926,3.21550583,3047.7,3047.6,0.2362]
[1763471155527,0.2435,3047.6,3047.5,0.1445]
[1763471155730,0.2435,3047.6,3047.5,0.3807]
[1763471156026,3.21550583,3047.7,3047.6,0.2362]
[1763471159629,3.45900583,3047.7,3047.6,0.2362]
[1763471159827,3.21550583,3047.7,3047.6,0.2362]
[1763471160431,0.00770583,3047.7,3047.6,0.2362]
[1763471160720,5.83e-06,3047.7,3047.6,0.2362]
[1763471160928,3.2078,3048.1,3048.0,0.3883]
[1763471161320,14.50328026,3048.2,3048.0,0.3883]
[1763471161520,14.50328026,3048.2,3048.1,0.2404]
[1763471161721,14.50328026,3048.2,3048.0,0.1479]
[1763471161722,0.23931016,3048.2,3048.0,0.1479]
[1763471161924,0.2363,3048.1,3048.0,0.3883]
[1763471162831,3.21081016,3048.2,3047.5,0.3849]
[1763471163023,3.21081016,3048.2,3048.1,0.2404]
[1763471163220,0.2363,3048.1,3048.0,0.1479]
[1763471163622,3.21081016,3048.2,3048.1,0.2404]
[1763471164021,3.44711016,3048.2,3048.1,0.2404]
[1763471164227,0.2363,3048.1,3048.0,0.3883]
[1763471164428,3.21081016,3048.2,3048.1,0.2404]
[1763471165224,0.00301016,3048.2,3048.1,0.2404]
[1763471165732,0.00492684,3048.4,3048.3,0.2404]
[1763471166025,0.24122684,3048.4,3048.3,3.2078]
[1763471166232,3.21272684,3048.4,3048.0,0.1479]
[1763471166633,3.21591962,3048.4,3048.0,0.1479]
[1763471167237,0.2363,3048.1,3048.0,0.3883]
[1763471169433,0.2363,3048.1,3047.5,3.3523]
[1763471169625,0.2363,3048.1,3048.0,0.3883]
[1763471173135,0.2363,3047.6,3047.5,3.5927]
[1763471173539,0.2363,3047.6,3047.5,0.3849]
[1763471174035,3.4441,3047.6,3047.5,0.3849]
[1763471174337,3.4441,3047.6,3047.1,3.2078]
[1763471178040,3.4441,3047.6,3047.5,0.3883]
[1763471178234,3.2078,3047.6,3047.5,0.3883]
[1763471178439,0.2363,3047.2,3047.1,3.2078]
[1763471178638,0.2194,3047.2,3047.1,3.4482]
[1763471178837,3.2078,3047.6,3047.1,3.4482]
[1763471179036,0.2194,3047.1,3047.0,0.1445]
[1763471179338,0.2194,3047.0,3046.9,0.0033451]
[1763471179540,0.2194,3047.0,3046.5,0.1445]
[1763471179541,0.2194,3046.7,3046.5,0.1445]
[1763471179730,0.2194,3046.2,3046.1,0.2404]
[1763471179934,0.2194,3046.1,3045.5,3.3557]
[1763471180534,0.2195,3045.6,3045.5,3.5811]
[1763471180736,0.22340204,3045.6,3045.5,0.37704752]
[1763471181247,0.00390204,3045.6,3045.5,0.37704752]
[1763471181845,0.00390204,3045.6,3045.5,3.58484752]
[1763471182638,0.00492684,3045.9,3045.5,3.58484752]
[1763471182846,3.4361,3046.6,3046.5,0.3663]
[1763471183643,3.4361,3046.6,3046.0,0.1409]
[1763471183945,3.44479779,3046.6,3046.0,0.1409]
[1763471184643,0.2283,3046.1,3046.0,0.1409]
[1763471184843,3.21649779,3046.6,3046.0,0.1409]
[1763471184844,3.21649779,3046.6,3046.0,0.3663]
[1763471185344,3.44479779,3046.6,3046.0,0.1409]
[1763471186349,3.44479779,3046.6,3046.5,0.1409]
[1763471187442,3.21649779,3046.6,3046.5,0.3663]
[1763471188549,3.44759779,3046.6,3046.5,0.3663]
[1763471188746,3.44759779,3046.6,3046.5,0.1409]
[1763471189548,0.2311,3046.1,3046.0,0.1409]
[1763471190248,0.2311,3046.1,3046.0,0.3692]
[1763471190651,3.21649779,3046.6,3046.0,0.3692]
[1763471191548,3.21649779,3046.6,3046.5,0.3765]
[1763471191941,0.00869779,3046.6,3046.5,3.5843]
[1763471192742,3.2078,3047.5,3047.0,0.3765]
[1763471193845,3.21037252,3047.5,3047.0,0.3765]
[1763471194940,0.2311,3047.1,3047.0,0.3765]
[1763471195343,0.2311,3047.0,3046.9,3.21272684]
[1763471195957,0.2311,3047.0,3046.9,0.00492684]
[1763471196247,0.2311,3047.0,3046.9,0.23322684]
[1763471197045,0.2311,3047.0,3046.9,0.00492684]
[1763471197443,3.21037252,3047.5,3047.0,0.1482]
[1763471197941,3.21037252,3047.5,3047.4,0.2283]
[1763471199348,0.00257252,3047.5,3047.4,0.2283]
[1763471200552,0.23367252,3047.5,3047.4,0.2283]
[1763471201254,0.00257252,3047.5,3047.4,0.2283]
[1763471202339,0.2311,3047.4,3047.3,3.2078]
[1763471202545,0.00257252,3047.5,3047.4,0.2283]
[1763471203345,0.23367252,3047.5,3047.4,0.2283]
[1763471205145,0.2311,3047.4,3047.3,3.2078]
[1763471205644,0.2311,3047.1,3047.0,0.1482]
[1763471207745,0.2311,3047.0,3046.9,0.00492684]
[1763471214351,3.4903,3047.0,3046.9,0.00492684]
[1763471214749,0.2311,3046.2,3046.1,3.4361]
[1763471214949,8.7698,3046.6,3046.1,3.4361]
[1763471215151,0.0039,3046.1,3046.0,0.1409]
[1763471215348,0.0039,3046.1,3045.5,0.15164752]
[1763471215555,0.0039,3045.6,3045.5,0.15164752]
[1763471216455,0.0039,3045.6,3045.5,0.00374752]
[1763471216656,0.0039,3045.3,3044.5,0.1482]
[1763471216862,3.2078,3044.9,3044.5,0.1482]
[1763471217666,3.21180532,3044.9,3044.5,0.15170895]
[1763471217964,0.0039,3044.6,3044.5,0.15170895]
[1763471220355,0.0039,3044.6,3044.5,0.00350895]
[1763471221558,0.0039,3044.6,3044.4,0.00492684]
[1763471221760,3.2078,3044.5,3044.0,0.1482]
[1763471222160,3.2078,3044.1,3044.0,0.1482]
[1763471222361,3.2078,3044.1,3043.7,0.03285529]
[1763471222561,7.2508,3044.1,3043.7,0.03285529]
[1763471222768,7.2508,3044.1,3043.7,0.03528994]
[1763471228770,3.2078,3044.1,3044.0,0.1406]
[1763471228966,8.2848,3044.1,3044.0,0.1406]
[1763471229270,0.00400532,3044.9,3044.1,0.2351]
[1763471229460,0.00400532,3044.9,3044.0,9.4254]
[1763471229461,3.2078,3045.4,3045.3,0.2351]
[1763471229660,0.1422,3046.0,3045.3,0.2351]
[1763471229865,0.2477,3045.4,3045.3,0.2351]
[1763471230070,0.2477,3045.1,3045.0,3.2078]
[1763471230258,0.2477,3045.1,3045.0,3.4429]
[1763471230466,0.00400813,3045.1,3045.0,0.2351]
[1763471230665,0.00400813,3045.1,3044.7,0.00492684]
[1763471230666,0.25170813,3045.1,3044.7,0.00492684]
[1763471230865,0.25170813,3045.1,3045.0,0.2351]
[1763471231074,0.00400813,3045.1,3045.0,0.3757]
[1763471231369,0.2477,3044.8,3044.7,0.00492684]
[1763471231576,0.2477,3044.8,3044.7,0.24002684]
[1763471231769,0.2477,3044.8,3044.7,0.00492684]
[1763471231963,3.4555,3044.8,3044.7,0.00492684]
[1763471232761,3.4555,3044.8,3044.1,3.2078]
[1763471232762,3.4555,3044.8,3043.7,3.24308994]
[1763471232977,3.2078,3044.4,3043.7,3.24308994]
[1763471233973,3.2078,3044.4,3044.3,0.2351]
[1763471234161,0.2477,3044.2,3044.1,3.2078]
[1763471234365,0.1422,3044.5,3044.1,3.4429]
[1763471234970,0.2477,3044.2,3044.1,3.2078]
[1763471235163,0.2477,3043.8,3043.7,0.04021678]
[1763471235370,3.4555,3043.8,3042.5,0.1406]
[1763471235670,0.1422,3044.0,3042.5,0.1406]
[1763471235671,3.2078,3043.1,3042.5,0.1406]
[1763471236072,3.2078,3043.1,3042.6,3.2078]
[1763471236276,3.2078,3043.1,3042.6,3.2117485]
[1763471236768,3.2078,3043.1,3043.0,0.2351]
[1763471236971,0.2477,3043.1,3042.6,3.2117485]
[1763471238174,0.00492684,3043.2,3042.6,3.2117485]
[1763471238375,0.00492684,3043.2,3043.1,0.2351]
[1763471244684,0.23262684,3043.2,3043.1,0.2351]
[1763471244884,0.00492684,3043.2,3043.1,0.2351]
[1763471248777,0.23262684,3043.2,3043.1,0.2351]
[1763471249087,0.00492684,3043.2,3043.1,0.2351]
[1763471250082,0.23622684,3043.2,3042.6,3.2117485]
[1763471250479,0.2313,3042.7,3042.6,3.4457485]
[1763471250681,0.23405277,3042.7,3042.6,3.2117485]
[1763471250879,0.23405277,3042.7,3042.0,0.1406]
[1763471250880,0.2313,3042.6,3042.0,0.1406]
[1763471251083,0.1451,3042.5,3042.0,0.1406]
[1763471251282,3.2078,3042.3,3042.0,0.1406]
[1763471251580,0.2313,3041.9,3041.5,0.1406]
[1763471251785,3.4391,3041.8,3041.5,0.0042638]
[1763471251985,3.2078,3041.8,3041.7,0.234]
[1763471252175,3.2078,3042.4,3042.3,0.234]
[1763471252577,1.16517273,3042.6,3042.0,0.1401]
[1763471252578,1.16517273,3042.6,3042.5,0.234]
[1763471252778,3.2078,3042.6,3042.5,0.3741]
[1763471253284,3.2078,3042.6,3042.0,3.3479]
[1763471253285,3.4391,3042.6,3042.0,3.3479]
[1763471253475,3.2078,3042.6,3042.5,0.3741]
[1763471254082,3.4391,3042.6,3042.5,0.234]
[1763471254484,3.2078,3042.6,3042.5,0.3741]
[1763471255291,0.00275277,3042.7,3042.6,0.234]
[1763471255582,0.00492684,3043.2,3043.1,0.234]
[1763471256486,0.00821384,3043.2,3043.1,0.234]
[1763471261281,3.2078,3043.4,3043.3,0.234]
[1763471262388,3.21090774,3043.4,3043.3,0.234]
[1763471264192,1.16517273,3044.1,3044.0,0.3741]
[1763471264387,1.39647273,3044.6,3044.0,3.3479]
[1763471265194,1.4052156,3044.6,3044.5,0.234]
[1763471265390,0.00874287,3044.6,3044.5,0.3741]
[1763471266798,0.00874287,3044.6,3044.5,3.5819]
[1763471267195,3.2078,3045.2,3045.1,0.234]
[1763471267392,3.2078,3045.8,3045.6,0.234]
[1763471267586,4.60427273,3045.8,3045.0,3.3479]
[1763471267894,3.4391,3045.8,3045.0,3.3479]
[1763471268391,0.00492684,3045.7,3045.6,0.234]
[1763471269998,0.1451,3046.5,3045.5,0.1401]
[1763471269999,3.2078,3046.2,3045.7,0.234]
[1763471270189,1.76459634,3046.9,3046.6,0.234]
[1763471270190,3.2078,3046.7,3046.6,0.234]
[1763471270386,3.4391,3046.7,3046.0,0.1401]
[1763471270687,3.2078,3046.3,3045.5,0.1401]
[1763471271093,0.00492684,3046.2,3045.5,0.14257166]
[1763471272804,3.2078,3045.9,3045.5,0.14257166]
[1763471273200,3.2078,3045.9,3045.8,0.234]
[1763471273798,0.00492684,3046.2,3046.1,0.234]
[1763471277306,0.23622684,3046.2,3045.8,3.2078]
[1763471277616,0.00492684,3046.2,3046.1,0.2334]
[1763471278812,0.24122684,3046.2,3045.8,3.2078]
[1763471279311,0.2363,3045.9,3045.8,3.2078]
[1763471280213,0.2363,3045.9,3045.5,0.14257166]
[1763471280402,3.2078,3046.1,3045.8,0.2334]
[1763471280601,0.2363,3045.6,3045.5,0.00247166]
[1763471281109,0.1491,3046.0,3045.5,0.23587166]
[1763471281509,0.2363,3045.6,3045.5,0.00247166]
[1763471281713,0.2363,3045.6,3045.5,0.23587166]
[1763471281907,0.1491,3046.0,3045.5,0.23587166]
[1763471283813,0.2363,3045.6,3045.5,0.00247166]
[1763471285107,0.2363,3045.2,3045.1,0.00492684]
[1763471285304,3.4441,3045.2,3045.1,0.00492684]
[1763471286314,3.4441,3045.2,3045.1,0.00893597]
[1763471287516,3.4441,3045.2,3045.1,0.24233597]
[1763471287809,3.2078,3045.2,3045.1,0.24233597]
[1763471288211,3.4441,3045.2,3045.1,0.24233597]
[1763471288526,3.3569,3046.0,3045.5,0.3815]
[1763471288814,0.2363,3045.6,3045.1,3.21673597]
[1763471289501,3.3569,3046.0,3045.5,0.2334]
[1763471290308,0.2363,3045.6,3045.5,0.2334]
[1763471290510,0.2363,3045.6,3045.1,3.21673597]
[1763471291715,0.2363,3045.6,3045.5,0.2334]
[1763471292216,0.1491,3045.5,3045.1,3.21673597]
[1763471292412,3.4441,3045.2,3045.1,0.00893597]
[1763471292921,0.1491,3045.5,3045.1,0.24233597]
[1763471293107,3.4441,3045.2,3045.1,0.00893597]
[1763471293818,3.2078,3045.2,3045.1,0.24233597]
[1763471294125,3.2078,3045.6,3045.5,0.3815]
[1763471294419,3.2078,3046.1,3046.0,0.3815]
[1763471295417,0.00327115,3046.3,3046.1,0.2334]
[1763471297915,0.00327115,3046.3,3046.1,3.4412]
[1763471299924,3.2078,3046.9,3046.2,0.2334]
[1763471300116,3.2078,3046.9,3046.8,0.2334]
[1763471300621,3.2078,3046.9,3046.5,0.1436]
[1763471300622,4.37297273,3047.3,3047.1,0.2476]
[1763471300826,3.2078,3047.3,3047.2,0.2476]
[1763471301026,3.2115078,3047.3,3047.2,0.2476]
[1763471301225,3.4584078,3047.3,3047.2,0.2476]
[1763471301426,3.2115078,3047.3,3047.2,0.2476]
[1763471304030,0.0037078,3047.3,3047.2,0.2476]
[1763471311333,0.2373,3047.0,3046.9,0.00492684]
[1763471311543,0.3803,3047.0,3046.9,0.00492684]
[1763471312921,6.3803,3047.0,3046.9,0.00492684]
[1763471313523,6.3803,3047.0,3046.1,3.2078]
[1763471313726,3.2078,3046.7,3046.1,3.2078]
[1763471314035,0.2373,3046.2,3046.1,3.4509]
[1763471315125,0.2373,3046.2,3046.1,3.2078]
[1763471315331,0.2373,3046.2,3045.8,0.00492684]
[1763471315730,0.2373,3045.9,3045.8,0.00492684]
[1763471317227,3.2078,3046.3,3045.8,0.24802684]
[1763471317432,3.2078,3046.3,3046.2,0.2431]
[1763471317735,3.4451,3046.3,3046.2,0.2431]
[1763471318037,0.2373,3046.3,3045.8,0.00492684]
[1763471318437,3.4451,3046.3,3045.8,0.00492684]
[1763471319145,0.2373,3046.3,3045.8,0.00492684]
[1763471319738,0.143,3046.5,3046.2,0.2431]
[1763471320331,3.2078,3046.7,3046.4,0.2431]
[1763471320530,3.2078,3046.7,3046.6,0.2431]
[1763471320929,3.2078,3047.1,3046.6,3.4509]
[1763471321135,0.0037078,3047.3,3046.6,3.4509]
[1763471321931,0.0037078,3047.3,3047.2,0.2431]
[1763471322134,0.2410078,3047.3,3047.2,0.2431]
[1763471322536,0.2410078,3047.3,3046.6,3.2078]
[1763471324944,0.2373,3046.7,3046.6,3.2078]
[1763471325147,0.143,3047.0,3046.6,3.2078]
[1763471325347,0.2373,3046.7,3046.6,3.2078]
[1763471326346,0.2373,3046.7,3046.6,3.4509]
[1763471326546,3.2078,3047.2,3046.6,3.4509]
[1763471327135,0.2373,3046.7,3046.6,3.4509]
[1763471327339,0.2373,3046.7,3046.6,3.2078]
[1763471328553,0.2373,3046.7,3046.2,3.2078]
[1763471328743,3.2078,3046.8,3046.2,3.2078]
[1763471328744,0.2373,3046.3,3046.2,3.2078]
[1763471329349,0.2373,3046.3,3045.8,3.21272684]
[1763471332243,0.2373,3045.9,3045.8,3.21272684]
[1763471333346,3.2078,3046.4,3045.8,3.45582684]
[1763471333649,0.2373,3045.9,3045.8,3.21272684]
[1763471334049,0.2373,3045.9,3045.8,0.00492684]
[1763471336850,0.2373,3045.2,3045.1,0.00400913]
[1763471342355,0.2435,3044.9,3044.8,0.00492684]
[1763471342542,3.4513,3044.9,3044.8,0.00492684]
[1763471343156,3.45529273,3044.9,3044.8,0.00788626]
[1763471343553,3.45529273,3044.9,3044.8,0.25228626]
[1763471344054,3.45529273,3044.9,3044.8,0.00788626]
[1763471344952,3.21179273,3044.9,3044.8,0.25228626]
[1763471345257,0.00399273,3044.9,3044.8,0.25228626]
[1763471345943,3.2078,3045.3,3045.2,0.2444]
[1763471346142,3.2078,3045.3,3045.0,0.1455]
[1763471346143,0.00492684,3045.5,3045.4,0.2444]
[1763471347050,0.0081657,3045.5,3045.4,0.2444]
[1763471348557,0.2516657,3045.5,3045.0,3.3533]
[1763471348757,0.2435,3045.1,3045.0,3.3533]
[1763471348948,0.0081657,3045.5,3045.0,3.5977]
[1763471349148,0.2435,3045.1,3045.0,0.1455]
[1763471349352,0.2435,3044.9,3044.8,0.00788626]
[1763471349553,0.2435,3044.9,3044.6,3.2078]
[1763471350356,0.2435,3044.7,3044.6,3.2078]
[1763471350653,0.2435,3044.7,3044.6,3.21080634]
[1763471350854,0.2435,3044.7,3044.6,0.00300634]
[1763471352253,0.2435,3044.7,3044.6,0.24740634]
[1763471352460,3.2078,3044.8,3044.7,0.2444]
[1763471352659,3.2078,3045.2,3045.1,0.2444]
[1763471355651,0.0081657,3045.5,3045.4,0.2444]
[1763471355952,0.2516657,3045.5,3045.1,3.2078]
[1763471356963,0.0081657,3045.5,3045.4,0.2444]
[1763471358963,0.2516657,3045.5,3045.1,3.2078]
[1763471359858,0.0081657,3045.5,3045.4,0.2444]
[1763471361963,4.37297273,3046.0,3045.4,0.2444]
[1763471362268,4.37297273,3046.8,3046.5,0.3743]
[1763471362461,3.2078,3046.8,3046.7,0.2359]
[1763471362759,1.16517273,3047.2,3046.7,3.4437]
[1763471363060,0.00492684,3047.3,3047.2,0.2359]
[1763471363363,0.00492684,3047.3,3047.2,0.23868604]
[1763471363364,0.00753398,3047.3,3047.2,0.23868604]
[1763471363958,0.23383398,3047.3,3047.2,0.00278604]
[1763471364165,3.44163398,3047.3,3047.2,0.00278604]
[1763471364765,3.44163398,3047.3,3046.6,0.00492684]
[1763471365158,3.2078,3046.8,3046.6,0.00492684]
[1763471365565,0.2263,3046.7,3046.6,0.00492684]
[1763471365767,3.2078,3046.8,3046.7,0.2359]
[1763471367469,3.4341,3046.8,3046.6,0.00766556]
[1763471367869,3.2078,3046.8,3046.7,0.2482]
[1763471369669,3.2078,3047.2,3046.7,0.2482]
[1763471369973,0.00753398,3047.3,3046.7,0.2482]
[1763471370367,0.00753398,3047.3,3047.2,0.2482]
[1763471374778,0.23853398,3047.3,3047.2,0.2482]
[1763471375176,0.23853398,3047.3,3047.1,3.2078]
[1763471376279,0.00753398,3047.3,3047.2,0.2482]
[1763471377169,1.23833716,3048.1,3047.2,0.2482]
[1763471377478,11.3118,3048.5,3047.8,3.2078]
[1763471378076,3.3593828,3048.5,3047.8,3.2078]
[1763471378973,3.2163828,3048.5,3047.8,3.2078]